Cogmind - Beta 10.1 @@@ ROGUE MODE // 2021.05.21 @ 09:30:41 Player: Farfid Result: Destroyed by G-67 Veteran with Plasma Rifle Performance ------------- Evolutions (6) 3000 Regions Visited (16) 3200 Robots Destroyed (169) 845 Value Destroyed (7089) 7089 Prototype IDs (48) 960 Alien Tech Used (1) 200 Bonus (2702) 2702 TOTAL SCORE: 17996 Bonus ------- High Alert Combat Kills 1150 Follower Combat Kills 1026 Aligned with FarCom 300 Met Zhirov 300 Friendly Fire -74 Cogmind --------- Core Integrity 0/1150 Matter 300/300 Energy 225/240 System Corruption 0% Temperature Cool (22) Movement Walking (120) Location -4/Extension Parts ------- > --- POWER (2) -------- Micro Fission Core Light Antimatter Reactor > --- PROPULSION (5) --- Flexi-carbon Leg Flexi-carbon Leg Flexi-carbon Leg Flexi-carbon Leg Myomer Leg > --- UTILITY (9) ------ Advanced Heat Sink High-capacity Storage Unit Enhanced Optical Array Advanced Melee Analysis Suite Advanced Melee Analysis Suite Improved Core Analyzer Nanoactuators Improved Core Shielding Improved Core Shielding > --- WEAPON (3) ------- KE Penetrator Power Sword Longsword +1 > --- INVENTORY (12) --- Light Antimatter Reactor Flexi-carbon Leg Myomer Leg Improved System Restoration Module Long-range Tractor Beam Transdimensional Reconstructor HERF Cannon Heavy Rocket Launcher Field Lobotomy Kit Phasing Sabre Master Tearclaws Peak State ------------ > --- POWER ------------ Micro Fission Core Light Antimatter Reactor > --- PROPULSION ------- Myomer Leg Myomer Leg Myomer Leg Myomer Leg Myomer Leg > --- UTILITY ---------- Advanced Heat Sink High-capacity Storage Unit Energy Well Enhanced Optical Array Advanced Melee Analysis Suite Improved Target Analyzer Improved Core Analyzer Nanoactuators Improved Core Shielding > --- WEAPON ----------- Power Sword Phasing Sabre Longsword +1 > --- INVENTORY -------- Light Antimatter Reactor Flexi-carbon Leg Improved System Restoration Module Long-range Tractor Beam Transdimensional Reconstructor Improved Arc Projector HERF Cannon KE Penetrator Field Lobotomy Kit Phasing Sabre Master Tearclaws [Rating: 118] Favorites ----------- Power Micro Fission Core Engine Improved Deuterium Engine Power Core Micro Fission Core Reactor Light Antimatter Reactor Propulsion Airjet Treads Heavy Treads Leg Carbon-fiber Leg Wheel Wheel Hover Unit Airjet Utility Advanced Melee Analysis Suite Device Advanced Heat Sink Storage Large Storage Unit Processor Advanced Melee Analysis Suite Protection Improved Core Shielding Weapon Gauss Rifle Energy Gun Heavy EM Pulse Gun Energy Cannon Heavy Phase Cannon Ballistic Gun Gauss Rifle Launcher Proton Missile Launcher Special Weapon Field Lobotomy Kit Slashing Weapon Longsword +1 Build | -11 -10 -10 -9 -9 -9 -8 -8 -7 -6 -5 -5 -5 -5 -4 -4 -4 ------- Run | Scr Mat Min Mat Min Exi Min Mat Fac Fac Fac Upp Upp Zhi Pro Fac Ext Slots Evolved 12 | . . . 2 . . . 2 2 2 2 . . . . 2 . Power 1 | . . . . . . . . . . . . . . . 1 . Propulsion 3 | . . . . . . . 2 . . . . . . . 1 . Utility 7 | . . . 2 . . . . 2 1 2 . . . . . . Weapon 1 | . . . . . . . . . 1 . . . . . . . Parts Attached 238 | 6 1 3 9 3 2 2 6 31 37 35 2 3 4 17 27 50 Power 20 | 1 . . 1 . . . . 4 2 4 . . . 1 3 4 Engine 2 | 1 . . . . . . . 1 . . . . . . . . Core 14 | . . . 1 . . . . 3 2 4 . . . . 3 1 Reactor 4 | . . . . . . . . . . . . . . 1 . 3 Propulsion 72 | 2 . . 2 . . . 2 8 11 9 . . . 2 12 24 Treads 13 | . . . . . . . . . 4 8 . . . 1 . . Leg 31 | . . . . . . . . 7 3 1 . . . 1 . 19 Wheel 2 | 2 . . . . . . . . . . . . . . . . Hover 26 | . . . 2 . . . 2 1 4 . . . . . 12 5 Flight . | . . . . . . . . . . . . . . . . . Utility 69 | 1 . 3 4 1 1 . 2 7 8 14 . 1 4 5 5 13 Device 41 | . . 1 1 1 . . 1 5 5 9 . 1 3 4 4 6 Storage 7 | 1 . 1 . . . . 1 . . 2 . . . . . 2 Processor 9 | . . 1 . . . . . 1 1 3 . . . . 1 2 Hackware . | . . . . . . . . . . . . . . . . . Protection 12 | . . . 3 . 1 . . 1 2 . . . 1 1 . 3 Artifact . | . . . . . . . . . . . . . . . . . Weapon 77 | 2 1 . 2 2 1 2 2 12 16 8 2 2 . 9 7 9 Energy Gun 12 | 1 1 . . . . . . 4 3 1 1 . . . . 1 Energy Cannon 12 | . . . . . . . . 1 2 3 . 1 . 3 2 . Ballistic Gun 30 | 1 . . 2 1 1 1 1 5 8 3 . . . 3 2 2 Ballistic Cannon . | . . . . . . . . . . . . . . . . . Launcher 12 | . . . . 1 . 1 1 2 3 1 . . . 1 . 2 Special Weapon 3 | . . . . . . . . . . . 1 . . 1 1 . Impact Weapon . | . . . . . . . . . . . . . . . . . Slashing Weapon 8 | . . . . . . . . . . . . 1 . 1 2 4 Piercing Weapon . | . . . . . . . . . . . . . . . . . Special Melee Weapon . | . . . . . . . . . . . . . . . . . Unidentified Prototypes 8 | . . 1 . . . . . 3 2 . . . 2 . . . Parts Lost 51 | . 1 . 1 . . . . 11 6 3 . 1 . 5 8 15 Power 4 | . . . 1 . . . . . . . . . . . 1 2 Propulsion 19 | . . . . . . . . 5 2 2 . . . 2 . 8 Utility 16 | . . . . . . . . 2 3 . . . . 3 4 4 Weapon 12 | . 1 . . . . . . 4 1 1 . 1 . . 3 1 Highest Loss Streak 6 | . 1 . 1 . . . . 6 3 2 . 1 . 3 4 5 Average Slot Usage (%) 90 | . 83 91 90 100 99 100 100 90 89 93 88 85 87 80 81 94 Engine 1 | . 14 14 9 . . . . 3 1 . . . . . . . Core 4 | . . . 1 11 11 11 9 3 4 4 5 5 5 . 2 5 Reactor 1 | . . . . . . . . . . . . . . 4 1 4 Treads 4 | . . . . . . . . . 6 16 11 11 11 8 1 . Leg 6 | . . . . . . . . 21 11 1 . . . . . 11 Hover 9 | . . . 19 22 22 22 36 6 8 . . . . . 19 12 Device 14 | . . . 4 11 11 11 9 12 9 22 23 23 22 15 12 12 Storage 9 | . 14 14 11 11 11 11 9 7 6 9 11 11 11 11 10 8 Processor 16 | . . 4 11 11 11 11 9 13 13 16 17 17 17 17 17 21 Protection 3 | . . . 8 11 11 11 9 4 7 1 . . . 1 3 3 Energy Gun 1 | . 12 14 . . . . . 8 1 . 3 . . . . . Energy Cannon 2 | . . . . . . . . . 2 3 5 10 11 6 2 . Ballistic Gun 7 | . 14 14 21 21 21 21 17 5 13 11 5 . . 3 2 1 Slashing Weapon 3 | . . . . . . . . . . . . 2 5 4 5 9 Naked Turns . | . . . . . . . . . . . . . . . . . Heaviest Build 72 | 10 10 22 31 34 31 31 35 49 64 52 54 56 58 70 57 72 Greatest Support 140 | 26 26 26 26 18 18 18 36 63 108 140 140 140 140 140 82 125 Greatest Overweight (x) 10 | . . . 2 1 1 1 . 10 4 1 . . . 2 1 1 Average Overweight (x) . | . . . . 1 1 1 . . . . . . . . . . Largest Inventory Capacity 18 | 6 6 12 10 10 10 10 10 10 10 10 10 10 10 10 10 18 Average Capacity 10 | 5 6 7 10 10 10 10 10 10 10 10 10 10 10 10 10 11 Most Carried 12 | 2 3 3 10 10 10 10 10 10 10 10 10 10 10 10 10 12 Average Carried 10 | . 2 2 9 10 9 10 9 9 9 9 10 9 9 9 9 11 Final Capacity 12 | 6 6 10 10 10 10 10 10 10 10 10 10 10 10 10 10 12 Final Carried 12 | 2 2 3 10 10 10 10 10 10 10 10 10 10 10 10 10 12 Class Distribution -------------------- 44% | Scavenger-Mutant 38% | Mutant 6% | Scavenger-Skirmisher Dominant Class ---------------- Mutant | -10/Materials Mutant | -10/Mines Mutant | -9/Materials Mutant | -9/Mines Mutant | -9/Exiles Skirmisher | -8/Mines Scout | -8/Materials Mutant | -7/Factory Gunner | -6/Factory Scavenger-Skirmisher | -5/Factory Scavenger-Mutant | -5/Upper Caves Mutant | -5/Upper Caves Mutant | -5/Zhirov Mutant | -4/Proximity Caves Scavenger-Mutant | -4/Factory Scavenger-Mutant | -4/Extension Resources | -11 -10 -10 -9 -9 -9 -8 -8 -7 -6 -5 -5 -5 -5 -4 -4 -4 ----------- Run | Scr Mat Min Mat Min Exi Min Mat Fac Fac Fac Upp Upp Zhi Pro Fac Ext Matter Collected 3978 | 253 57 23 198 77 . . 150 577 660 606 48 25 . 272 299 733 Remotely 87 | . . . . . . . . 87 . . . . . . . . Salvage Created 8471 | . 122 . 167 84 . 5 75 1181 1057 1038 92 125 . 430 675 3420 Parts 357 | . 11 . 10 8 . . 10 55 51 57 4 12 . 21 34 84 Haulers Intercepted 8 | . . . 2 . . . . 3 2 . . . . . . 1 Recyclers Shooed 7 | . . . . 2 . . . 2 1 . . . . . 1 1 Parts Field Recycled . | . . . . . . . . . . . . . . . . . Retrieved Matter . | . . . . . . . . . . . . . . . . . Parts Self-Destructed 19 | . . . . . . . . . . . 4 7 . 8 . . Prevented 14 | . . . . . . . . . . . . 5 . 9 . . Kills | -11 -10 -10 -9 -9 -9 -8 -8 -7 -6 -5 -5 -5 -5 -4 -4 -4 ------- Run | Scr Mat Min Mat Min Exi Min Mat Fac Fac Fac Upp Upp Zhi Pro Fac Ext Combat Hostiles Destroyed 120 | . 5 . 2 3 . . 3 15 15 13 4 2 . 6 11 41 Melee 43 | . . . . . . . . . . . . . . 3 11 29 Guns 38 | . 5 . 2 1 . . . 10 5 6 2 . . . . 7 Cannons 10 | . . . . . . . . . 3 3 2 2 . . . . AOE 22 | . . . . 2 . . 3 4 5 2 . . . 1 . 5 Classes Destroyed 17 | . 2 . 2 1 . 1 1 5 . 1 . . . 1 . 3 Worker 16 | . . . . . . 1 1 4 4 3 . . . . . 3 Builder 6 | . . . . . . . 1 . 1 2 . . . . . 2 Tunneler 3 | . . . . 1 . . . . 1 1 . . . . . . Hauler 8 | . . . 2 . . . . 3 2 . . . . . . 1 Recycler 8 | . . . . . . . . 2 1 . . . . . . 5 Operator 2 | . . . . . . . . 1 1 . . . . . . . Watcher 6 | . . . . . . . . 1 1 2 . . . . . 2 Swarmer 27 | . 3 . . 2 . . 3 3 4 . 4 . . . . 8 Saboteur 3 | . . . . . . . . . . . . . . . . 3 Grunt 43 | . 2 . 1 1 . . . 6 3 7 . . . 3 2 18 Brawler 1 | . . . . . . . . . . . . . . . . 1 Duelist 5 | . . . . . . . . . . 1 . . . . . 4 Sentry 15 | . . . 1 . . . . 4 2 3 . . . . 3 2 Demolisher 2 | . . . . . . . . . . . . . . . . 2 Hunter 12 | . . . . . . . . 1 5 . . 2 . 2 . 2 Programmer 11 | . . . . . . . . 1 1 2 . . . . 6 1 Master Thief 1 | . . . . . . . . . . . . . . 1 . . Best Kill Streak 7 | . 3 . 1 2 . 1 5 5 6 6 3 2 . 3 3 7 Combat Bots Only 7 | . 3 . 1 2 . . 3 4 4 4 3 2 . 3 3 7 Max Kills in Single Turn 4 | . 1 . 1 2 . 1 4 2 4 3 1 1 . 1 1 2 Gunslinging . | . . . . . . . . . . . . . . . . . Exploded 3 | . . . . 2 . . 3 1 2 1 . . . 1 . 2 Melee 1 | . . . . . . . . . . . . . . 1 1 1 Uniques/NPCs Destroyed . | . . . . . . . . . . . . . . . . . Combat | -11 -10 -10 -9 -9 -9 -8 -8 -7 -6 -5 -5 -5 -5 -4 -4 -4 -------- Run | Scr Mat Min Mat Min Exi Min Mat Fac Fac Fac Upp Upp Zhi Pro Fac Ext Damage Taken 10831 | . 129 . 150 28 . . 141 1459 1468 1003 . 718 . 1336 1707 2692 Core 1908 | . 14 . . . . . 9 273 133 101 . 67 . 150 651 510 Absorbed by Shields . | . . . . . . . . . . . . . . . . . Reduced by Siege Mode 118 | . . . . . . . . . . . . 68 . 50 . . Core Remaining (%) 86 | 100 . 94 . . . 100 98 61 84 . . . . 68 . . Volleys Fired 333 | . 15 1 14 7 . 1 10 73 56 44 9 13 . 19 7 64 Largest 3 | . 2 2 2 2 . 1 2 2 3 3 2 2 . 2 2 1 Hottest 198 | . 60 60 46 46 . 36 46 90 198 154 126 196 . 128 128 39 Shots Fired 557 | . 30 2 28 13 . 1 12 136 110 94 16 15 . 28 8 64 Gun 420 | . 30 2 28 12 . . 10 129 68 67 7 9 . 10 1 47 Cannon 81 | . . . . . . . . . 30 22 7 6 . 9 7 . Launcher 52 | . . . . 1 . 1 2 7 12 5 . . . 7 . 17 Special 4 | . . . . . . . . . . . 2 . . 2 . . Kinetic 328 | . 15 1 28 12 . . 10 73 63 61 7 . . 10 1 47 Thermal 108 | . 15 1 . . . . . . 35 28 7 6 . 9 7 . Explosive . | . . . . . . . . . . . . . . . . . Electromagnetic 117 | . . . . 1 . 1 2 63 12 5 . 9 . 7 . 17 Robot Hit Streak 23 | . 7 . 6 10 . . 3 18 10 21 2 6 . 23 . 7 Robot Miss Streak 6 | . 4 2 3 1 . . 4 6 2 2 3 1 . 1 . 4 Penetration Max 1 | . . . . . . . . . 1 1 . . . . . 1 Secondary Targets 4 | . . . . 1 . . . 2 . 1 . . . . . . Max Gunslinging Chain 1 | . . . . 1 . . . 1 . 1 . . . . . . Shots Hit Robots 570 | . 15 . 17 8 . . 6 115 67 65 6 9 . 38 53 171 Core Hits 303 | . 8 . 5 4 . 1 6 54 41 41 4 4 . 13 20 102 Critical Hits 25 | . . . . . . . 1 . 3 3 1 . . 1 1 15 Critical Kills 10 | . . . . . . . 1 . 2 1 . . . . 1 5 Critical Parts Destroyed 13 | . . . . . . . . . 1 1 1 . . . . 10 Melee Attacks 221 | . . . . . . . . . . . . . . 16 65 140 Impact . | . . . . . . . . . . . . . . . . . Slashing 221 | . . . . . . . . . . . . . . 16 65 140 Piercing . | . . . . . . . . . . . . . . . . . Sneak Attacks 15 | . . . . . . . . . . . . . . . 2 13 Combat Hostiles 4 | . . . . . . . . . . . . . . . 1 3 Follow-up Attacks 13 | . . . . . . . . . . . . . . . 1 12 Damage Inflicted 22317 | . 155 . 282 237 . 47 221 2210 3768 2245 177 246 . 1375 2550 8804 Guns 5971 | . 155 . 282 136 . . 82 1692 973 990 108 175 . 219 . 1159 Cannons 1404 | . . . . . . . . . 489 509 69 71 . 266 . . Explosions 5009 | . . . . 101 . 47 139 518 2306 746 . . . 394 . 758 Melee 9933 | . . . . . . . . . . . . . . 496 2550 6887 Ramming . | . . . . . . . . . . . . . . . . . Kinetic 4760 | . 46 . 282 136 . . 82 976 880 872 108 . . 219 . 1159 Thermal 2423 | . 109 . . 63 . 47 24 210 837 627 69 71 . 266 . 100 Explosive 1769 | . . . . . . . . . 1545 224 . . . . . . Electromagnetic 3432 | . . . . 38 . . 115 1024 506 522 . 175 . 394 . 658 Impact . | . . . . . . . . . . . . . . . . . Slashing 9933 | . . . . . . . . . . . . . . 496 2550 6887 Piercing . | . . . . . . . . . . . . . . . . . Highest Corruption 4 | . . . . . . . . . . 2 2 2 2 2 4 4 Average Corruption 2 | . . . . . . . . . . 1 2 2 2 2 3 2 Corruption Purged 5 | . . . . . . . . . . . . . . . 1 4 Effects 38 | . . . . . . . . . . . 4 8 . 11 15 . Message Errors 10 | . . . . . . . . . . . 1 1 . 6 2 . Matter Fused 3 | . . . . . . . . . . . . . . . 3 . Heat Flow Errors 6 | . . . . . . . . . . . 2 2 . 1 1 . Energy Discharges 8 | . . . . . . . . . . . 1 4 . . 3 . Data Loss (minor) 7 | . . . . . . . . . . . . 1 . 4 2 . Targeting Errors 4 | . . . . . . . . . . . . . . . 4 . Overload Shots . | . . . . . . . . . . . . . . . . . Overflow Damage 1386 | . . . . 3 . . . 3 442 . . . . 22 312 604 Projectiles 29 | . . . . . . . . . 29 . . . . . . . Explosions 425 | . . . . 3 . . . 3 413 . . . . . . 6 Melee 932 | . . . . . . . . . . . . . . 22 312 598 Knockbacks . | . . . . . . . . . . . . . . . . . Impact . | . . . . . . . . . . . . . . . . . Kinetic . | . . . . . . . . . . . . . . . . . Secondary . | . . . . . . . . . . . . . . . . . Self-Inflicted Damage 64 | . . . . . . . . . . . . . . 3 . 61 Shots 4 | . . . . . . . . . . . . . . 1 . 3 Rammed . | . . . . . . . . . . . . . . . . . Targets Rammed . | . . . . . . . . . . . . . . . . . Kicked . | . . . . . . . . . . . . . . . . . Crushed . | . . . . . . . . . . . . . . . . . Highest Temperature 248 | . 9 . 17 14 . 4 16 234 170 27 221 219 . 65 248 12 Average Temperature 47 | . 6 . 7 9 . 3 8 49 54 11 98 73 . 13 94 6 Received Heat Transfer 1830 | . 24 . 51 6 . . 36 516 234 228 . 39 . 117 258 321 Effects 1 | . . . . . . . . 1 . . . . . . . . Interference 1 | . . . . . . . . 1 . . . . . . . . Siege Activations 2 | . . . . . . . . . . . . 1 . 1 . . Total Turns 34 | . . . . . . . . . . . . 18 . 16 . . Longest Duration 18 | . . . . . . . . . . . . 18 . 16 . . Robots Corrupted 8 | . . . . . . . . 2 2 2 . . . 2 . . Combat Hostiles 7 | . . . . . . . . 1 2 2 . . . 2 . . Parts Fried 22 | . . . . . . . 2 4 3 3 . 2 . 7 . 1 Impact Corruptions . | . . . . . . . . . . . . . . . . . Robots Melted . | . . . . . . . . . . . . . . . . . Combat Hostiles . | . . . . . . . . . . . . . . . . . Parts Melted 5 | . . . . 1 . . . . 4 . . . . . . . Heat Transferred 3299 | . 250 . . 100 . 100 100 250 1098 703 74 74 . 400 . 150 Parts Sabotaged 2 | . . . . . . . . . . . . . . . . 2 Parts Stolen 2 | . . . . . . . . . . . . . . 2 . . Parts Stripped . | . . . . . . . . . . . . . . . . . Power Chain Reactions 9 | . . . . . . . 1 3 1 1 . . . . . 3 Missiles Intercepted . | . . . . . . . . . . . . . . . . . Alert | -11 -10 -10 -9 -9 -9 -8 -8 -7 -6 -5 -5 -5 -5 -4 -4 -4 ------- Run | Scr Mat Min Mat Min Exi Min Mat Fac Fac Fac Upp Upp Zhi Pro Fac Ext Peak Influence 1106 | . 114 17 215 128 . 203 147 266 850 654 . . . . 269 1106 Initial 364 | . . 17 6 13 . . 78 66 111 364 . . . . . 131 Average 407 | . 41 17 79 121 . 147 114 134 469 407 . . . . 70 748 Maximum Alert Level 4 | . . . 1 . . 1 . 1 3 2 . . . . 1 4 Low Security (%) 38 | 100 100 100 91 100 . 27 100 81 24 . . . . . 91 3 Level 1 18 | . . . 8 . . 72 . 18 25 52 . . . . 8 5 Level 2 19 | . . . . . . . . . 12 47 . . . . . 29 Level 3 24 | . . . . . . . . . 37 . . . . . . 60 Level 4 . | . . . . . . . . . . . . . . . . . Level 5 . | . . . . . . . . . . . . . . . . . High Security . | . . . . . . . . . . . . . . . . . Max Security . | . . . . . . . . . . . . . . . . . Squads Dispatched 31 | . 1 . 2 . . . . 6 4 4 . . . . 2 12 Investigation 4 | . . . 1 . . . . . . . . . . . . 3 Extermination 5 | . . . . . . . . 1 . 2 . . . . 2 . Reinforcement 12 | . 1 . 1 . . . . 2 4 2 . . . . . 2 Assault 7 | . . . . . . . . . . . . . . . . 7 Garrison 3 | . . . . . . . . 3 . . . . . . . . Intercept . | . . . . . . . . . . . . . . . . . Construction Impeded 3 | . . . . . . . . . 1 1 . . . . . 1 Haulers Reinforced 1 | . . . . . . . . 1 . . . . . . . . Stealth | -11 -10 -10 -9 -9 -9 -8 -8 -7 -6 -5 -5 -5 -5 -4 -4 -4 --------- Run | Scr Mat Min Mat Min Exi Min Mat Fac Fac Fac Upp Upp Zhi Pro Fac Ext Distress Signals 7 | . 1 . . . . . . 1 1 1 . . . . 2 1 Communications Jammed . | . . . . . . . . . . . . . . . . . Distress Signals . | . . . . . . . . . . . . . . . . . Times Spotted 240 | . 9 . 8 4 . . 9 26 27 18 5 5 . 12 18 99 Peak Tracking Total 13 | . 3 . 3 2 . . 6 4 5 4 4 3 . 3 6 13 Tactical Retreats 32 | . . . . . . . 4 6 1 1 . . . 1 2 17 Traps | -11 -10 -10 -9 -9 -9 -8 -8 -7 -6 -5 -5 -5 -5 -4 -4 -4 ------- Run | Scr Mat Min Mat Min Exi Min Mat Fac Fac Fac Upp Upp Zhi Pro Fac Ext Traps Triggered 12 | . . . . . . . . 1 2 5 . . . . . 4 Indirectly 1 | . . . . . . . . . 1 . . . . . . . Trap Hack Attempts . | . . . . . . . . . . . . . . . . . Triggered . | . . . . . . . . . . . . . . . . . Disarmed . | . . . . . . . . . . . . . . . . . Reprogrammed . | . . . . . . . . . . . . . . . . . Reused . | . . . . . . . . . . . . . . . . . Traps Extracted . | . . . . . . . . . . . . . . . . . Installed . | . . . . . . . . . . . . . . . . . Triggered 1 | . . . . . . . . . . . 1 . . . . . Machines | -11 -10 -10 -9 -9 -9 -8 -8 -7 -6 -5 -5 -5 -5 -4 -4 -4 ---------- Run | Scr Mat Min Mat Min Exi Min Mat Fac Fac Fac Upp Upp Zhi Pro Fac Ext Machines Disabled 53 | . . . . 1 . 11 . 1 19 19 . . . . 1 1 Max in Single Turn 12 | . . . . 1 . 11 . 1 8 12 . . . . 1 . Garrison Access 3 | . . . . . . . . 1 1 1 . . . . . . Machines Sabotaged . | . . . . . . . . . . . . . . . . . Garrisons Compromised . | . . . . . . . . . . . . . . . . . Overloaded Fab Kills . | . . . . . . . . . . . . . . . . . Fab Network Shutdowns . | . . . . . . . . . . . . . . . . . Hacking | -11 -10 -10 -9 -9 -9 -8 -8 -7 -6 -5 -5 -5 -5 -4 -4 -4 --------- Run | Scr Mat Min Mat Min Exi Min Mat Fac Fac Fac Upp Upp Zhi Pro Fac Ext Machines Accessed 36 | . 2 . 2 . 1 . 1 3 2 5 . 1 4 . 7 8 Terminals 22 | . 2 . 2 . . . 1 2 . 4 . . . . 4 7 Fabricators 1 | . . . . . . . . . . . . . . . 1 . Repair Stations 2 | . . . . . . . . . . . . . . . 1 1 Recycling Units . | . . . . . . . . . . . . . . . . . Scanalyzers . | . . . . . . . . . . . . . . . . . Garrison Access 5 | . . . . . . . . 1 2 1 . . . . 1 . Total Hacks 102 | . 7 . 11 . 1 . 2 10 4 15 . 1 16 . 14 21 Successful 56 | . 5 . 4 . 1 . 2 5 1 5 . 1 16 . 6 10 Failed 46 | . 2 . 7 . . . . 5 3 10 . . . . 8 11 Catastrophic 10 | . . . 1 . . . . 1 . 2 . . . . 2 4 Database Lockouts . | . . . . . . . . . . . . . . . . . Manual 34 | . 4 . 7 . 1 . . 4 . 10 . . . . 2 6 Terminals 67 | . 7 . 11 . . . 2 7 . 14 . . . . 8 18 Fabricators 2 | . . . . . . . . . . . . . . . 2 . Repair Stations 5 | . . . . . . . . . . . . . . . 2 3 Recycling Units . | . . . . . . . . . . . . . . . . . Scanalyzers . | . . . . . . . . . . . . . . . . . Garrison Access 10 | . . . . . . . . 3 4 1 . . . . 2 . Terminal Hacks 35 | . 4 . 4 . 1 . 2 1 . . . 1 16 . 1 5 Record 5 | . . . . . . . . . . . . . 5 . . . Part Schematic 3 | . . . . . . . . . . . . . 3 . . . Robot Analysis 5 | . 1 . . . . . . . . . . . 4 . . . Prototype ID Bank 7 | . . . 1 . . . 1 1 . . . . 4 . . . Open Door 6 | . . . . . . . . . . . . 1 . . 1 4 Branch Access Points 2 | . 1 . 1 . . . . . . . . . . . . . Unreport Threat 2 | . 1 . 1 . . . . . . . . . . . . . Transport Status 1 | . . . . . . . 1 . . . . . . . . . Zone Layout 3 | . 1 . 1 . . . . . . . . . . . . 1 EX-Prototype ID Bank 1 | . . . . . 1 . . . . . . . . . . . Fabricator Hacks 2 | . . . . . . . . . . . . . . . 2 . Load Schematic 1 | . . . . . . . . . . . . . . . 1 . Build 1 | . . . . . . . . . . . . . . . 1 . Repair Station Hacks 4 | . . . . . . . . . . . . . . . 2 2 Scan Component 2 | . . . . . . . . . . . . . . . 1 1 Repair 2 | . . . . . . . . . . . . . . . 1 1 Recycling Unit Hacks . | . . . . . . . . . . . . . . . . . Scanalyzer . | . . . . . . . . . . . . . . . . . Garrison Access Hacks 3 | . . . . . . . . 1 1 1 . . . . . . Seal Access 3 | . . . . . . . . 1 1 1 . . . . . . Unauthorized Hacks 12 | . 1 . . . . . . 3 . 4 . . . . 1 3 Terminals 12 | . 1 . . . . . . 3 . 4 . . . . 1 3 Track 3 | . 1 . . . . . . 1 . . . . . . . 1 Botnet 9 | . . . . . . . . 2 . 4 . . . . 1 2 Fabricators . | . . . . . . . . . . . . . . . . . Repair Stations . | . . . . . . . . . . . . . . . . . Recycling Units . | . . . . . . . . . . . . . . . . . Scanalyzers . | . . . . . . . . . . . . . . . . . Garrison Access . | . . . . . . . . . . . . . . . . . Data Cores Recovered . | . . . . . . . . . . . . . . . . . Used . | . . . . . . . . . . . . . . . . . Hacking Detections 27 | . 1 . 2 . . . 1 3 2 4 . . . . 6 8 Full Trace Events 3 | . . . 1 . . . . . . . . . . . . 2 Feedback Events . | . . . . . . . . . . . . . . . . . Feedback Blocked . | . . . . . . . . . . . . . . . . . Robot Schematics Acquired . | . . . . . . . . . . . . . . . . . Robots Built . | . . . . . . . . . . . . . . . . . Matter . | . . . . . . . . . . . . . . . . . Time . | . . . . . . . . . . . . . . . . . Total Robot Build Rating . | . . . . . . . . . . . . . . . . . Part Schematics Acquired 3 | . . . . . . . . . . . . . 3 . . . Parts Built . | . . . . . . . . . . . . . . . . . Matter 318 | . . . . . . . . . . . . . . . 318 . Time 169 | . . . . . . . . . . . . . . . 169 . Total Part Build Rating . | . . . . . . . . . . . . . . . . . Parts Repaired 2 | . . . . . . . . . . . . . . . 1 1 Time 78 | . . . . . . . . . . . . . . . 28 50 Parts Recycled . | . . . . . . . . . . . . . . . . . Recycled Matter . | . . . . . . . . . . . . . . . . . Retrieved Matter . | . . . . . . . . . . . . . . . . . Retrieved Components . | . . . . . . . . . . . . . . . . . Parts Scanalyzed . | . . . . . . . . . . . . . . . . . Part Schematics Acquired . | . . . . . . . . . . . . . . . . . Parts Damaged . | . . . . . . . . . . . . . . . . . Bothacking | -11 -10 -10 -9 -9 -9 -8 -8 -7 -6 -5 -5 -5 -5 -4 -4 -4 ------------ Run | Scr Mat Min Mat Min Exi Min Mat Fac Fac Fac Upp Upp Zhi Pro Fac Ext Used RIF Installer . | . . . . . . . . . . . . . . . . . Robots Hacked . | . . . . . . . . . . . . . . . . . Non-combat . | . . . . . . . . . . . . . . . . . Combat . | . . . . . . . . . . . . . . . . . Robot Hacks Applied . | . . . . . . . . . . . . . . . . . Relay Couplers Released . | . . . . . . . . . . . . . . . . . Robots Rewired 6 | . . . . . . . . . . . . . . . . 6 Allies Hacked 1 | . . . . . . . . . . . . . . . . 1 Hacks Repelled . | . . . . . . . . . . . . . . . . . Allies | -11 -10 -10 -9 -9 -9 -8 -8 -7 -6 -5 -5 -5 -5 -4 -4 -4 -------- Run | Scr Mat Min Mat Min Exi Min Mat Fac Fac Fac Upp Upp Zhi Pro Fac Ext Total Allies 18 | . . 3 . . . . . . . . 1 . . 2 . 12 Largest Group 10 | . . 3 3 3 1 1 1 . . . 1 1 . 2 . 10 Highest-Rated Group 435 | . . 40 40 40 16 16 16 . . . 64 51 . 128 . 435 Highest-Rated Ally 64 | . . 16 16 16 16 16 16 . . . 64 51 . 64 . 49 Total Orders 4 | . . . . . . . . . . . . . . 4 . . EXPLORE 2 | . . . . . . . . . . . . . . 2 . . RETURN 2 | . . . . . . . . . . . . . . 2 . . Ally Attacks 177 | . . . 34 18 . . 4 . 9 . 7 1 . 21 . 83 Total Damage 3609 | . . . 419 172 . . 49 . 478 . 9 8 . 653 . 1821 Kills 33 | . . . 6 2 . . . . 5 . . . . 1 . 19 Allies Corrupted . | . . . . . . . . . . . . . . . . . Allies Melted . | . . . . . . . . . . . . . . . . . Turrets Deployed 3 | . . . . . 1 . . . 1 . . . . 1 . . Field Lobotomies 3 | . . . . . . . . . . . 1 . . 2 . . Intel | -11 -10 -10 -9 -9 -9 -8 -8 -7 -6 -5 -5 -5 -5 -4 -4 -4 ------- Run | Scr Mat Min Mat Min Exi Min Mat Fac Fac Fac Upp Upp Zhi Pro Fac Ext Robot Analysis Total 5 | . 1 . . . . . . . . . . . 4 . . . Derelict Logs Recovered 3 | . . . . . . . . . . . 2 . . 1 . . Drone Launches 2 | . . . . . . . . . . . . . . 2 . . Drone Recoveries 2 | . . . . . . . . . . . . . . 2 . . Exploration | -11 -10 -10 -9 -9 -9 -8 -8 -7 -6 -5 -5 -5 -5 -4 -4 -4 ------------- Run | Scr Mat Min Mat Min Exi Min Mat Fac Fac Fac Upp Upp Zhi Pro Fac Ext Turns Passed 11240 | 52 106 167 455 252 466 161 220 1131 942 1381 613 634 230 857 759 2814 Spaces Moved 7102 | 44 62 172 324 190 394 122 265 841 539 727 364 364 138 409 527 1620 Core 6 | 3 . . . . . . . 3 . . . . . . . . Treads 2240 | . . . . . . . . . 161 727 364 364 138 362 124 . Legs 1442 | . . . . . . . . 511 223 . . . . 47 . 661 Wheels 314 | 41 62 172 39 . . . . . . . . . . . . . Hover 3100 | . . . 285 190 394 122 265 327 155 . . . . . 403 959 Flight . | . . . . . . . . . . . . . . . . . Fastest Speed 48 | 50 90 90 90 116 116 116 48 48 108 160 160 160 160 160 48 48 Average Speed 112 | 87 90 90 113 116 116 116 48 95 129 160 160 160 160 162 83 80 Slowest Speed 550 | 90 90 90 180 116 116 116 48 550 300 180 160 160 160 180 160 150 Overloaded Moves . | . . . . . . . . . . . . . . . . . Propulsion Burnouts . | . . . . . . . . . . . . . . . . . Robots Hopped . | . . . . . . . . . . . . . . . . . Cave-ins Triggered . | . . . . . . . . . . . . . . . . . Exploration Rate (%) 36 | 3 20 48 32 30 70 49 18 20 19 24 65 53 61 53 15 46 Regions Visited 16 Branch Regions 9 Pre-discovered Areas 5 | . . 1 . . . . . . . . . . 3 1 . . Known Exits Taken 3 | . 1 . 1 . . . . . . . 1 . . . . . Unknown Exits Taken 13 | 1 . 1 . 1 1 1 1 1 1 1 . 1 1 1 1 . Scrap Searched 8 | . . 1 . 1 . . . . . . 2 3 . 1 . . Spaces Dug 25 | . . . . 16 . . . . 1 3 . . . . 5 . Terrain Destroyed 260 | . . . . 16 . 34 2 6 137 32 2 4 . 1 9 17 Melee 2 | . . . . . . . . . . . . . . . 2 . Projectile 31 | . . . . . . . . . 7 6 2 4 . 1 7 4 AOE 227 | . . . . 16 . 34 2 6 130 26 . . . . . 13 Terrain Rammed . | . . . . . . . . . . . . . . . . . Walls Destroyed . | . . . . . . . . . . . . . . . . . Machines Disabled . | . . . . . . . . . . . . . . . . . Actions | -11 -10 -10 -9 -9 -9 -8 -8 -7 -6 -5 -5 -5 -5 -4 -4 -4 --------- Run | Scr Mat Min Mat Min Exi Min Mat Fac Fac Fac Upp Upp Zhi Pro Fac Ext Total 9700 | 54 82 182 389 209 405 139 347 1033 686 866 376 401 147 567 812 3005 Wait 1491 | 3 2 4 21 9 . 15 61 58 16 26 2 18 . 74 170 1012 Move 7086 | 43 61 171 323 189 393 121 264 840 538 726 363 363 137 408 526 1620 Hop . | . . . . . . . . . . . . . . . . . Pick Up 85 | 2 2 1 12 . 4 . 3 11 9 9 . 1 1 15 4 11 Fast Attach 142 | 6 . 2 7 . 2 . . 19 20 26 . 3 4 7 14 32 Attach 44 | . 1 1 1 . . . 2 7 7 1 . . 1 4 7 12 Detach 10 | . . 1 . . . . . 1 2 . . . . 1 2 3 Swap 53 | . . . 1 3 . 2 4 5 10 8 2 . . 6 6 6 Drop 154 | . 1 1 10 1 6 . 3 19 23 26 . 3 4 17 12 28 Fire 333 | . 15 1 14 7 . 1 10 73 56 44 9 13 . 19 7 64 Melee 204 | . . . . . . . . . . . . . . 16 64 124 Ram . | . . . . . . . . . . . . . . . . . Kick . | . . . . . . . . . . . . . . . . . Crush . | . . . . . . . . . . . . . . . . . Escape Stasis 57 | . . . . . . . . . 5 . . . . . . 52 Rewire 41 | . . . . . . . . . . . . . . . . 41 Trap . | . . . . . . . . . . . . . . . . . Miscellaneous . | . . . . . . . . . . . . . . . . . Route ------- -11/Scrapyard -10/Materials -10/Mines -9/Materials (discovered 4 exits: *Mat / *Min x2 / *Sto) -9/Mines (discovered 2 exits: *Mat / *Exi) -9/Exiles -8/Mines -8/Materials -7/Factory (discovered 2 exits: *Fac x2) -6/Factory -5/Factory (discovered 3 exits: *Fac / [*Upp x2]) -5/Upper Caves -5/Upper Caves (discovered 2 exits: *Fac / *Zhi) -5/Zhirov -4/Proximity Caves -4/Factory -4/Extension History --------- Turn | Location | Event 18 | -11/Scrapyard | Discovered new exit (range 16) 53 | -11/Scrapyard | Entered Materials 146 | -10/Materials | Identified exit to Mines 159 | -10/Materials | Entered Mines 160 | -10/Mines | Learned location of Storage (-9) 180 | -10/Mines | Found a damaged Exp. Sensor Array with a note attached 182 | -10/Mines | Found Prototype Device 189 | -10/Mines | Identified Exp. Sensor Array 202 | -10/Mines | Assisted by bots powering up and referring to "LRC-V3" 304 | -10/Mines | Build established: Mutant 312 | -10/Mines | Discovered new exit (range 9) 326 | -10/Mines | Entered Materials 326 | -9/Materials | Accompanied by 3 allies 326 | -9/Materials | Evolved 2 slots: Utility x2 511 | -9/Materials | Discovered new exit (range 16) 555 | -9/Materials | Discovered new exit (range 16) 609 | -9/Materials | Identified exit to Mines 609 | -9/Materials | Identified exit to Storage 781 | -9/Materials | Entered Mines 781 | -9/Mines | Accompanied by 3 allies 859 | -9/Mines | Discovered new exit (range 5) 1023 | -9/Mines | Deemed a non-threat by the Exiles lab entrance 1023 | -9/Mines | Discovered new exit (range 5) 1033 | -9/Mines | Entered Exiles 1033 | -9/Exiles | Accompanied by 1 ally 1062 | -9/Exiles | Met 8R-AWN 1082 | -9/Exiles | Met EX-HEX 1141 | -9/Exiles | Met EX-DEC 1236 | -9/Exiles | Met EX-BIN 1257 | -9/Exiles | Aligned with FarCom system 1259 | -9/Exiles | Given EX-Vault access code 1286 | -9/Exiles | Opened EX-Vault 1297 | -9/Exiles | Found Field Lobotomy Kit 1323 | -9/Exiles | Warned to stay clear of 0b10 Research branches 1362 | -9/Exiles | Found Longsword +1 1368 | -9/Exiles | Found Deploy-a-Sentry 1370 | -9/Exiles | Found Deploy-a-Sentry 1387 | -9/Exiles | DAS Turret deployed 1487 | -9/Exiles | Discovered new exit (range 12) 1499 | -9/Exiles | Stole three prototypes: Field Lobotomy Kit, Longsword +1, Deploy-a-Sentry 1499 | -9/Exiles | Entered Mines 1499 | -8/Mines | Accompanied by 1 ally 1644 | -8/Mines | Discovered new exit (range 10) 1660 | -8/Mines | Entered Materials 1660 | -8/Materials | Accompanied by 1 ally 1660 | -8/Materials | Evolved 2 slots: Propulsion x2 1871 | -8/Materials | Discovered new exit (range 16) 1880 | -8/Materials | Entered Factory 1880 | -7/Factory | Evolved 2 slots: Utility x2 1882 | -7/Factory | FarCom data flow suspended 2104 | -7/Factory | Discovered new exit (range 9) 2211 | -7/Factory | Lost 6 parts (4n1u1w) 2794 | -7/Factory | Garrison activated, responded to threat 2950 | -7/Factory | Discovered new exit (range 6) 3011 | -7/Factory | Entered another Factory area 3011 | -6/Factory | Evolved 2 slots: Utility x1, Weapon x1 3335 | -6/Factory | DAS Turret deployed 3367 | -6/Factory | Lost 3 parts (2u1w) 3677 | -6/Factory | Lost 3 parts (2n1u) 3914 | -6/Factory | Discovered new exit (range 15) 3953 | -6/Factory | Entered another Factory area 3953 | -5/Factory | Evolved 2 slots: Utility x2 4445 | -5/Factory | Discovered new exit (range 22) 4604 | -5/Factory | Build established: Scavenger-Skirmisher 4768 | -5/Factory | Discovered new exit (range 22) 5200 | -5/Factory | Spotted B-75 Beast 5320 | -5/Factory | Discovered new exit (range 9) 5334 | -5/Factory | Entered Upper Caves 5464 | -5/Upper Caves | Spotted QR-UUF(f) 5465 | -5/Upper Caves | Encountered a Master Thief 5468 | -5/Upper Caves | Build established: Scavenger-Mutant 5469 | -5/Upper Caves | Assimilated QR-UUF(f) with FLK Orb 5575 | -5/Upper Caves | Identified exit to Upper Caves 5878 | -5/Upper Caves | Learned Factory terminal intel 5947 | -5/Upper Caves | Entered another Upper Caves area 5947 | -5/Upper Caves | Accompanied by 1 ally 6032 | -5/Upper Caves | Discovered new exit (range 16) 6201 | -5/Upper Caves | Spotted B-75 Beast 6295 | -5/Upper Caves | Build established: Mutant 6557 | -5/Upper Caves | Discovered new exit (range 15) 6581 | -5/Upper Caves | Entered Zhirov 6581 | -5/Zhirov | Discovered new exit (range 3) 6610 | -5/Zhirov | Met Zhirov 6644 | -5/Zhirov | Learned location of Quarantine (-2) 6644 | -5/Zhirov | Learned location of Testing (-3) 6644 | -5/Zhirov | Learned location of Command (-1) 6658 | -5/Zhirov | Zhirov requested help retrieving the SGEMP Prototype 6684 | -5/Zhirov | Found Alien Artifact 6684 | -5/Zhirov | Identified Integrated Reactor 6684 | -5/Zhirov | Installed Integrated Reactor, increased core energy generation (+10) 6746 | -5/Zhirov | Found Alien Artifact 6811 | -5/Zhirov | Entered Proximity Caves 7011 | -4/Proximity Caves | Spotted U1-MJN(f) 7013 | -4/Proximity Caves | Encountered a Master Thief 7014 | -4/Proximity Caves | Assimilated U1-MJN(f) with FLK Orb 7016 | -4/Proximity Caves | Spotted 1I-F29(f) 7017 | -4/Proximity Caves | Encountered a Master Thief 7017 | -4/Proximity Caves | Assimilated 1I-F29(f) with FLK Orb 7133 | -4/Proximity Caves | Lost 3 parts (1n2u) 7196 | -4/Proximity Caves | Spotted B-86 Titan 7277 | -4/Proximity Caves | DAS Turret deployed 7302 | -4/Proximity Caves | Allies destroyed B-86 Titan 7414 | -4/Proximity Caves | Spotted IK-JG1(f) 7414 | -4/Proximity Caves | Spotted BB-KR3(f) 7415 | -4/Proximity Caves | Encountered a Master Thief 7415 | -4/Proximity Caves | Encountered a Master Thief 7417 | -4/Proximity Caves | Lgt. Quantum Reactor stolen by Master Thief 7420 | -4/Proximity Caves | Destroyed IK-JG1(f) 7458 | -4/Proximity Caves | Encountered a Master Thief 7464 | -4/Proximity Caves | Myomer Leg stolen by Master Thief 7468 | -4/Proximity Caves | Spotted EF-25M(f) 7615 | -4/Proximity Caves | Discovered new exit (range 20) 7639 | -4/Proximity Caves | Build established: Scavenger-Mutant 7668 | -4/Proximity Caves | Entered Factory 7668 | -4/Factory | Evolved 2 slots: Power x1, Propulsion x1 7669 | -4/Factory | Loaded intel: 21 terminal locations 8054 | -4/Factory | Lost 4 parts (2u2w) 8287 | -4/Factory | Repaired Gyrokinetic Inverter 8383 | -4/Factory | Core integrity fell below 50% 8425 | -4/Factory | Discovered new exit (range 5) 8427 | -4/Factory | Entered Extension 8496 | -4/Extension | Rescued a captive Derelict 8498 | -4/Extension | Rescued a captive Derelict 8498 | -4/Extension | Rescued a captive Derelict 8553 | -4/Extension | Lost 3 parts (2n1u) 8583 | -4/Extension | Rescued a captive Derelict 8680 | -4/Extension | Repaired Energy Well 8780 | -4/Extension | Rescued a captive Derelict 8783 | -4/Extension | Rescued a captive Derelict 8845 | -4/Extension | Spotted B-86 Titan 8927 | -4/Extension | Disrupted transfer network 9177 | -4/Extension | First assault squad dispatched 9865 | -4/Extension | Lost 3 parts (2n1w) 9911 | -4/Extension | Core integrity fell below 20% 9935 | -4/Extension | Lost 5 parts (1p3n1u) 10168 | -4/Extension | Destroyed 7 combat bots 11241 | -4/Extension | Destroyed by G-67 Veteran with Plasma Rifle Last Messages --------------- 11062_ Acquired 10 matter. 11065_ Acquired Lgt. Antimatter Reactor. 11081_ W-44 Eye destroyed. 11146_ Slug penetrates G-67 Veteran. 11150_ G-67 Veteran suffers critical hit. 11150_ Destroyed Electrolaser. 11152_ Slug penetrates G-67 Veteran. 11152_ G-67 Veteran destroyed. 11156_ Slug penetrates G-67 Veteran. 11158_ G-67 Veteran destroyed. 11160_ Slug penetrates Wall. 11162_ Slug penetrates G-67 Veteran. 11164_ G-67 Veteran suffers critical hit. 11164_ Destroyed Flexi-carbon Leg. 11166_ Slug penetrates G-67 Veteran. 11172_ Acquired 48 matter. 11177_ ALERT: Significant disruption in Zone 4X, assault force dispatched. 11197_ Destroyed Electrolaser. 11198_ Destroyed Lgt. Antimatter Reactor. 11199_ G-67 Veteran destroyed. Map ----- +----------------------------------------------------+ | | | | | | | | | | | | | | | | | | | | | | | | | ???????????????????????????????? | | ???????????????????????????????? | | ???????????????????????????????? | | ???????????????????????????????? | | ?????????????????????##????????? | | ???????????????????###T######### | | ???????????????????# | | ???????????????????########## | | ?????????####???????????????# | | ?????????#=*#???????????????# | | ????????##[%##?????########## | | ????????#T[= #####?# # # # | | ?????#####%###; #### # # | | ?????#g@%%/ |! %[% | | ?????#[####[##; #### ###### | | ?????#!#??#!T###### = [ | | ?????#=#??#%##????## % %[ | | ?????#!#??# #??????# ## ### | | ?????#%#??###??????# #?? | | ?????#=#???????????# = ## #?? | | ?????#/#???????????## ########?? | | ?????#=#????????????###????????? | | ?????#!#???????????????????????? | | ?????#%#???????????????????????? | | ?????#%#???????????????????????? | | ?????#%#???????????????????????? | | ?????#!#???????????????????????? | | ?????#=#???????????????????????? | | ?????#/#???????????????????????? | | ?????%!#???????????????????????? | | ?????#=#???????????????????????? | | ?????!%#???????????????????????? | | ?????#/#???????????????????????? | | ?????#%#???????????????????????? | | ?#####%#####???????????????????? | | ?# ["="" ##??????????????????? | | ?# [*%" ##################### | | ?# =%== = | +----------------------------------------------------+ Best States ------------- Heat Dissipation 78 Energy Generation 44 Energy Capacity 740 Matter Stores 300 Matter Capacity 550 Sight Range 22 Robot Scan Range 30 Terrain Scan Range 24 Terrain Scan Density 10 Cloak Strength 3 Power Amplification 20 Additional Mass Support 9 Armor Coverage 825 Core Shielding 30 Propulsion Shielding 66 Melee Speed Boost 30 Evasion (%) 55 Targeting Accuracy 5 Melee Accuracy 24 Target Analysis 6 Core Analysis 8 Recoil Reduction 4 Item Schematics ----------------- Assault Drone Bay | -5/Zhirov | Free Exp. Heat Sink | -5/Zhirov | Free Exp. Optical Array | -5/Zhirov | Free Robot Schematics ------------------ None Fabricated ------------ Nothing Alien Tech Used ----------------- Integrated Reactor Achievements -------------- None Challenges ------------ None Game ------ Seed GodScatterSplitter Manual? 0 Play Time 02:00:25 Cumulative 280.8 hours Start 2021.05.21 @ 07:31:30 End 2021.05.21 @ 09:30:41 Sessions 1 Manual Loads 0 Difficulty Rogue Special Mode None Game No. 112 Rogue 112 Adventurer 0 Explorer 0 Win Type - Total 12 Types 10/0/1/1/0/0/0/0/0 Lore% 73 Gallery% 84 Achievement% 67 Wizard Run 0 Options --------- ASCII 0 Keyboard 0 Movement Mouse Keybinds 0 Fullscreen 2 Font 12/Smallcaps Map View 83x54 Tactical HUD 1 Map Filters NONE Filters NONE Steam X RUN: e3a9e20a-01ec-45bc-9fd4-34df57d21c4e